bitfinex/quotes_ETHUSD_20250129
["timestamp","ask_amount","ask_price","bid_price","bid_amount"]
[1738167736277,3.3976049,3086.2,3085.6,3.87746428]
[1738167737096,0.1573049,3086.2,3085.7,3.24073]
[1738167737293,0.1573049,3086.2,3085.8,0.08613422]
[1738167737485,6.4808,3086.1,3085.5,4.0189]
[1738167737685,3.24039,3086.1,3085.6,0.08613285]
[1738167738406,3.24045,3086.0,3085.6,0.08613285]
[1738167738912,0.1573049,3086.2,3085.7,3.24073]
[1738167739093,0.1573049,3086.2,3085.8,0.08627425]
[1738167739727,0.1573049,3086.2,3085.5,0.778]
[1738167739728,3.24065,3085.8,3085.5,0.778]
[1738167740515,3.2407,3085.8,3085.3,3.79115]
[1738167740703,6.48145,3085.8,3085.3,0.55]
[1738167740904,3.2407,3085.8,3085.3,0.55]
[1738167741433,3.24088,3085.6,3085.4,0.37]
[1738167741929,3.3975549,3086.2,3085.5,0.55]
[1738167742099,3.3975549,3086.2,3085.7,3.24067]
[1738167742449,0.1573049,3086.2,3085.5,3.24094]
[1738167742654,3.24044,3086.0,3085.5,3.602034]
[1738167742950,3.24035,3086.1,3085.6,3.79082]
[1738167743096,0.1573049,3086.2,3085.7,3.24074]
[1738167743295,3.3975349,3086.2,3085.7,3.24074]
[1738167743929,0.1573049,3086.2,3085.9,0.8108]
[1738167744095,0.1573049,3086.2,3086.0,3.24037]
[1738167744292,0.1573049,3086.2,3086.0,3.27277228]
[1738167744518,0.1573049,3086.2,3086.1,6.82273043]
[1738167744717,0.1573049,3086.2,3086.1,11.22471301]
[1738167744934,0.1573049,3086.2,3086.1,11.23221301]
[1738167745119,0.1573049,3086.2,3086.1,12.33787401]
[1738167746912,3.2385,3087.9,3086.5,2.0]
[1738167747248,4.04749,3088.3,3087.6,3.23872]
[1738167747429,3.23813,3088.2,3087.7,0.376]
[1738167747640,3.23855,3087.8,3087.7,0.376]
[1738167748144,3.23843,3088.0,3087.7,0.376]
[1738167748349,3.23835,3088.0,3087.7,0.376]
[1738167748517,3.23846,3087.9,3087.7,0.376]
[1738167748716,3.23835,3088.0,3087.7,0.376]
[1738167748934,3.23855,3087.8,3087.7,0.376]
[1738167750502,3.23855,3087.8,3087.7,0.45925359]
[1738167751847,3.23835,3088.0,3087.7,0.45925359]
[1738167752223,6.47678,3088.0,3087.7,0.376]
[1738167752413,6.47678,3088.0,3087.8,0.08319577]
[1738167752610,3.23814,3088.2,3087.8,0.08319577]
[1738167752811,3.23834,3088.0,3087.7,0.376]
[1738167753015,3.23834,3088.0,3087.9,0.08312285]
[1738167753212,3.23817,3088.2,3087.8,0.08319577]
[1738167753533,3.23826,3088.1,3087.9,0.08312285]
[1738167753730,3.23834,3088.0,3087.9,0.08312285]
[1738167754030,3.23808,3088.3,3087.9,0.08345528]
[1738167754237,3.23824,3088.1,3087.7,0.376]
[1738167754443,3.23824,3088.1,3088.0,0.08340217]
[1738167754732,3.23808,3088.3,3088.0,0.08338235]
[1738167754934,3.23813,3088.2,3087.8,0.55]
[1738167755112,3.23813,3088.2,3087.9,0.08344773]
[1738167755314,3.23808,3088.3,3087.9,0.08344773]
[1738167755511,3.23816,3088.2,3087.9,0.08344773]
[1738167756451,3.23834,3088.0,3087.9,0.08344773]
[1738167756809,6.47643,3088.2,3087.9,0.08344773]
[1738167757255,3.23826,3088.1,3087.9,0.08344773]
[1738167757845,4.05684,3088.0,3087.9,0.08344773]
[1738167758341,3.23819,3088.2,3087.4,0.379]
[1738167758548,3.23819,3088.2,3087.6,0.55]
[1738167758549,3.23817,3088.2,3087.6,0.55]
[1738167758711,3.23817,3088.2,3087.7,0.7606]
[1738167758911,3.23826,3088.1,3087.8,0.08318852]
[1738167759135,6.4766,3088.1,3087.7,0.7606]
[1738167759337,3.23844,3087.9,3087.8,0.08318852]
[1738167759538,3.23844,3087.9,3087.5,0.55]
[1738167759755,3.23844,3087.9,3087.6,0.08333439]
[1738167760569,3.23865,3087.7,3087.4,1.1396]
[1738167761652,3.23865,3087.7,3087.4,0.7606]
[1738167761869,3.23865,3087.7,3087.5,0.379]
[1738167762321,3.23855,3087.8,3087.5,0.379]
[1738167763256,3.23844,3087.9,3087.5,0.379]
[1738167763478,3.2386,3087.8,3087.6,0.377]
[1738167763954,3.2386,3087.8,3087.7,0.377]
[1738167764254,3.23882,3087.6,3087.4,0.7606]
[1738167764423,3.23882,3087.6,3087.5,0.378]
[1738167765059,3.23865,3087.7,3087.4,0.377]
[1738167765562,3.23876,3087.6,3087.5,0.08337714]
[1738167768436,3.966881,3087.6,3087.5,0.08337714]
[1738167768640,3.23921,3087.2,3086.8,0.7556]
[1738167768832,3.23907,3087.3,3086.9,0.376]
[1738167769030,3.23907,3087.3,3086.9,0.4598149]
[1738167769526,3.23907,3087.3,3087.0,35.0]
[1738167769726,3.23907,3087.3,3087.1,0.08366896]
[1738167769950,3.23918,3087.2,3087.1,0.08366896]
[1738167770564,4.685805,3087.2,3087.1,0.08366896]
[1738167771075,4.685805,3087.2,3086.7,0.374]
[1738167771076,3.23945,3087.0,3086.7,0.374]
[1738167771375,3.2396,3086.8,3086.7,0.374]
[1738167772172,3.23955,3086.9,3086.7,0.374]
[1738167772459,1.446625,3087.2,3086.6,35.0]
[1738167772460,3.2397,3086.7,3086.6,35.0]
[1738167772665,3.2397,3086.7,3086.6,35.374]
[1738167773331,3.2397,3086.7,3086.6,35.0]
[1738167773968,6.47927,3086.8,3086.6,35.0]
[1738167774144,3.2397,3086.7,3086.6,35.0]
[1738167777244,0.7988,3087.2,3086.6,39.96760769]
[1738167777442,3.23834,3088.0,3086.7,0.58239515]
[1738167777632,3.23904,3087.4,3086.7,3.82200515]
[1738167777830,3.23914,3087.3,3086.8,3.23957]
[1738167778068,3.23904,3087.4,3086.9,3.942348]
[1738167778269,3.23904,3087.4,3087.0,35.0]
[1738167778270,3.23907,3087.3,3087.0,35.0]
[1738167778564,6.47809,3087.4,3087.0,35.0]
[1738167778929,3.23904,3087.4,3087.0,35.0]
[1738167779562,3.23907,3087.3,3087.0,35.0]
[1738167779764,6.47766,3087.6,3087.0,38.23936]
[1738167779966,3.2389,3087.5,3087.0,39.62538369]
[1738167780167,3.23897,3087.4,3087.0,35.0]
[1738167780369,3.23897,3087.4,3087.1,0.08426104]
[1738167780578,3.23908,3087.3,3087.1,0.08426104]
[1738167781338,3.23918,3087.2,3087.1,0.08426104]
[1738167781540,0.04038814,3087.2,3086.3,3.0]
[1738167781739,3.2397,3086.7,3086.6,0.45562594]
[1738167782667,3.23992,3086.5,3086.3,35.37]
[1738167783997,3.23992,3086.5,3086.3,35.369]
[1738167784193,3.23992,3086.5,3086.3,35.0]
[1738167784194,3.24002,3086.4,3086.3,35.0]
[1738167784395,3.24012,3086.3,3086.2,2.565]
[1738167784967,3.24075,3085.7,3085.0,4.02955]
[1738167785300,3.24109,3085.4,3085.0,1.1581]
[1738167785475,3.24109,3085.4,3085.1,35.0]
[1738167786081,3.24086,3085.6,3085.1,35.0]
[1738167786282,6.48182,3085.6,3085.1,35.0]
[1738167786515,3.0,3085.9,3085.1,35.0]
[1738167786516,3.2407,3085.8,3085.1,35.0]
[1738167786819,3.2407,3085.8,3085.1,35.37]
[1738167787138,3.2407,3085.8,3085.2,0.55]
[1738167787338,0.7873,3086.2,3085.4,3.24099]
[1738167787339,3.24049,3086.0,3085.4,3.24099]
[1738167787621,3.24007,3086.4,3085.8,3.24064]
[1738167787807,3.23985,3086.6,3086.0,0.7981]
[1738167788007,3.23985,3086.6,3086.1,3.24029]
[1738167788215,3.23999,3086.5,3086.0,0.7981]
[1738167788687,3.23999,3086.5,3086.2,35.0]
[1738167788888,6.47999,3086.5,3086.2,35.0]
[1738167789080,3.23999,3086.5,3086.2,35.0]
[1738167789781,3.24012,3086.3,3086.2,35.0]
[1738167789985,3.23999,3086.5,3086.2,35.0]
[1738167791028,3.24004,3086.4,3086.2,35.0]
[1738167791182,3.24023,3086.2,3086.1,0.37]
[1738167791386,3.24012,3086.3,3086.1,0.37]
[1738167791616,3.24001,3086.5,3086.1,0.37]
[1738167791814,3.24001,3086.5,3086.2,35.0]
[1738167792515,3.2399,3086.6,3086.2,35.0]
[1738167793029,3.23992,3086.5,3086.2,35.0]
[1738167793459,0.66067914,3086.7,3086.3,4.01482]
[1738167793766,3.23952,3086.9,3086.4,3.24001]
[1738167793955,3.23952,3086.9,3086.3,4.01474]
[1738167794155,3.23952,3086.9,3086.4,35.0]
[1738167794322,3.23952,3086.9,3086.4,38.24]
[1738167794657,3.23952,3086.9,3086.4,35.0]
[1738167795444,0.65847515,3086.8,3086.5,0.08524662]
[1738167795643,3.23981,3086.6,3086.5,0.08524662]
[1738167795844,4.05891,3086.6,3086.5,0.08524662]
[1738167796052,0.8191,3086.6,3086.1,0.37]
[1738167796257,3.24023,3086.2,3086.1,0.37]
[1738167797447,3.24008,3086.4,3086.1,0.37]
[1738167798474,6.48017,3086.4,3086.1,0.37]
[1738167798655,3.24008,3086.4,3086.1,0.37]
[1738167799270,0.8191,3086.6,3086.1,0.37]
[1738167799443,3.23991,3086.5,3086.1,1.1497]
[1738167800059,3.2397,3086.7,3086.1,4.38998]
[1738167800276,3.2397,3086.7,3086.1,1.1497]
[1738167800479,3.24009,3086.4,3086.1,0.37]
[1738167800629,3.24018,3086.3,3086.1,0.37]
[1738167800857,3.24023,3086.2,3085.8,0.778]
[1738167801059,3.24023,3086.2,3085.8,1.146]
[1738167801259,6.48055,3086.2,3085.8,1.146]
[1738167801495,3.24023,3086.2,3085.8,1.146]
[1738167801756,3.24034,3086.1,3085.8,1.146]
[1738167802266,3.24046,3086.0,3085.8,0.368]
[1738167802471,3.24023,3086.2,3085.8,0.368]
[1738167802865,6.48053,3086.2,3085.8,0.368]
[1738167803172,3.24023,3086.2,3085.8,0.368]
[1738167803510,3.24006,3086.4,3085.9,0.55]
[1738167803715,3.24006,3086.4,3085.9,3.79054]
[1738167803871,3.24006,3086.4,3085.9,0.55]
[1738167804205,3.87887803,3086.6,3086.1,3.24031]
[1738167804411,3.23937,3087.1,3086.3,4.04733]
[1738167804698,3.23941,3087.0,3086.5,3.23991]
[1738167805071,4.01793,3087.3,3086.5,3.23991]
[1738167805415,3.23921,3087.2,3086.7,3.2397]
[1738167805619,3.23921,3087.2,3086.7,38.2397]
[1738167806200,3.23921,3087.2,3086.5,3.23981]
[1738167806409,0.63717387,3087.1,3086.9,3.23941]
[1738167806568,0.63717387,3087.1,3087.0,35.0]
[1738167807362,0.63717387,3087.1,3086.8,3.23959]
[1738167807556,3.23909,3087.3,3086.8,3.23959]
[1738167807762,3.23892,3087.5,3086.9,38.23944]
[1738167807956,6.47788,3087.5,3086.9,38.23944]
[1738167808190,3.23892,3087.5,3086.9,38.23944]
[1738167808422,3.23892,3087.5,3086.9,38.23943]
[1738167808719,3.89806762,3087.5,3086.9,35.0]
[1738167809325,3.89806762,3087.5,3086.9,38.23949]
[1738167809628,3.23892,3087.5,3087.0,3.23936]
[1738167810377,3.23892,3087.5,3087.1,0.08465012]
[1738167810797,3.2391,3087.3,3086.8,3.2395]
[1738167811099,3.23897,3087.4,3086.9,3.78947]
[1738167811526,3.23897,3087.4,3087.0,0.08472309]
[1738167812207,3.23864,3087.8,3087.2,3.23909]
[1738167812528,3.23851,3087.9,3087.2,3.23909]
[1738167812529,3.23869,3087.7,3087.3,0.85294533]
[1738167812837,6.47743,3087.7,3087.3,0.85294533]
[1738167813039,3.23877,3087.6,3087.3,0.08414533]
[1738167813337,3.23877,3087.6,3087.1,0.55]
[1738167813496,3.23877,3087.6,3087.2,0.08418053]
[1738167813699,3.23903,3087.4,3087.2,0.08418053]
[1738167814040,3.23903,3087.4,3087.0,0.7688]
[1738167814196,3.23903,3087.4,3087.3,0.08410757]
[1738167814398,3.23903,3087.4,3087.0,0.7688]
[1738167814625,3.23903,3087.4,3087.3,0.08410757]
[1738167814817,3.23903,3087.4,3087.0,0.7688]
[1738167815025,3.23903,3087.4,3087.3,0.08410757]
[1738167815233,3.23903,3087.4,3087.0,0.7688]
[1738167815775,3.23903,3087.4,3087.1,0.08425349]
[1738167816113,3.23882,3087.6,3087.1,0.08425349]
[1738167816314,3.23898,3087.4,3087.1,0.08425349]
[1738167816503,3.23907,3087.3,3086.7,0.363]
[1738167816700,3.2396,3086.8,3086.7,0.363]
[1738167817160,3.23956,3086.9,3086.7,0.363]
[1738167817311,6.47915,3086.9,3086.7,0.363]
[1738167817505,3.2396,3086.8,3086.7,0.363]
[1738167817705,6.4795,3086.7,3086.3,0.364]
[1738167817935,3.23972,3086.7,3086.3,0.364]
[1738167818554,3.23972,3086.7,3086.4,35.0]
[1738167818921,4.02211,3086.9,3086.4,35.0]
[1738167818922,3.23991,3086.5,3086.4,35.0]
[1738167819308,3.24002,3086.4,3086.0,0.363]
[1738167819577,3.24002,3086.4,3085.9,0.365]
[1738167819853,3.23983,3086.6,3086.0,0.55]
[1738167820057,3.23983,3086.6,3086.0,3.79038]
[1738167820223,3.23991,3086.5,3086.0,3.79038]
[1738167820421,1.42669305,3086.9,3085.9,0.365]
[1738167820609,3.23991,3086.5,3086.0,35.0]
[1738167820829,3.23991,3086.5,3086.0,38.24042]
[1738167821011,3.23991,3086.5,3086.0,41.48084]
[1738167821363,3.23954,3086.9,3086.1,4.59067]
[1738167822404,3.23955,3086.9,3086.5,35.0]
[1738167823943,3.23934,3087.1,3086.5,35.0]
[1738167824110,3.23883,3087.6,3087.0,3.23932]
[1738167824440,4.02857,3088.1,3087.3,3.23906]
[1738167824441,0.7903,3088.1,3087.3,3.23906]
[1738167824745,3.23867,3087.7,3087.4,35.0]
[1738167825299,3.23867,3087.7,3087.5,0.08429024]
[1738167825907,3.23876,3087.6,3087.5,0.08429024]
[1738167826329,3.23876,3087.6,3086.7,3.23963]
[1738167826330,3.23924,3087.2,3086.7,0.7972]
[1738167826638,3.23903,3087.4,3087.0,0.55]
[1738167826840,4.05825,3087.6,3087.0,0.55]
[1738167827039,4.05825,3087.6,3087.1,0.08458207]
[1738167827254,6.87358482,3088.0,3087.1,3.32384207]
[1738167827255,3.23863,3087.8,3087.1,3.32384207]
[1738167827435,3.23863,3087.8,3087.3,3.23905]
[1738167827631,3.23849,3087.9,3087.4,0.8154]
[1738167827819,4.05469,3088.2,3087.4,0.89958191]
[1738167828017,4.05469,3088.2,3087.6,3.23875]
[1738167828248,3.24298,3088.4,3087.6,3.78875]
[1738167828472,3.24298,3088.4,3087.8,3.23854]
[1738167828776,3.87876758,3088.4,3087.9,0.0838172]
[1738167828939,3.87876758,3088.4,3087.7,6.90101131]
[1738167829141,3.87876758,3088.4,3087.8,3.23852]
[1738167829440,3.87876758,3088.4,3087.8,3.32241013]
[1738167829629,0.64078758,3088.4,3087.8,0.83736727]
[1738167829827,0.64078758,3088.4,3087.9,3.23844]
[1738167830044,0.64078758,3088.4,3087.8,0.08389013]
[1738167830249,0.64078758,3088.4,3088.0,0.08374427]
[1738167830556,0.64078758,3088.4,3088.1,0.08367135]
[1738167830761,0.005,3088.4,3087.9,3.23844]
[1738167831133,0.005,3088.4,3088.1,4.0532]
[1738167831348,0.005,3088.4,3088.2,3.23807]
[1738167831670,0.005,3088.4,3088.2,3.32166843]
[1738167831962,0.005,3088.4,3088.2,0.08359843]
[1738167832149,0.005,3088.4,3088.3,3.23802]
[1738167832526,0.005,3088.4,3088.3,3.32119821]
[1738167833164,0.005,3088.4,3088.3,0.08317821]
[1738167833458,0.005,3088.4,3088.3,3.23802]
[1738167833761,0.005,3088.4,3088.3,3.32119821]
[1738167833938,0.005,3088.4,3088.3,4.05863203]
[1738167834765,0.005,3088.4,3088.3,4.61613203]
[1738167834926,0.005,3088.4,3088.3,8.40133203]
[1738167835563,1e-05,3088.4,3088.3,8.40883203]
[1738167836257,1e-05,3088.4,3088.3,43.40883203]
[1738167836461,1e-05,3088.4,3088.3,43.76283203]
[1738167837727,1e-05,3088.4,3088.3,43.77033203]
[1738167838435,1e-05,3088.4,3088.3,45.77783203]
[1738167838757,1e-05,3088.4,3088.3,43.77783203]
[1738167838962,1e-05,3088.4,3088.3,43.76833203]
[1738167839646,1e-05,3088.4,3088.3,43.75983203]
[1738167839855,1e-05,3088.4,3088.3,8.75983203]
[1738167840739,1e-05,3088.4,3088.3,8.77483203]
[1738167841461,1e-05,3088.4,3088.3,43.77483203]
[1738167842832,1e-05,3088.4,3088.3,43.40133203]
[1738167843026,1e-05,3088.4,3088.3,43.21633203]
[1738167843268,1e-05,3088.4,3088.3,43.76633203]
[1738167844735,1e-05,3088.4,3088.3,45.77383203]
[1738167845570,1e-05,3088.4,3088.3,43.76633203]
[1738167847673,1e-05,3088.4,3088.3,45.77383203]
[1738167849670,1e-05,3088.4,3088.3,49.58937971]
[1738167850239,0.1573049,3089.3,3089.2,10.51973099]
[1738167850440,4.9e-06,3089.3,3089.2,11.56530165]
[1738167850765,4.9e-06,3089.3,3089.2,11.63313541]
[1738167850962,4.9e-06,3089.3,3089.2,46.63313541]
[1738167851875,4.9e-06,3089.3,3089.2,50.05113541]
[1738167852266,4.9e-06,3089.3,3089.2,46.63313541]
[1738167852788,3.23464,3091.6,3091.0,3.23509]
[1738167852943,3.23492,3091.3,3091.1,0.378]
[1738167853141,0.805,3091.5,3091.1,0.45729229]
[1738167853345,0.805,3091.5,3091.1,3.69230229]
[1738167853544,3.23478,3091.4,3091.1,0.45729229]
[1738167858398,3.23478,3091.4,3091.1,0.07929229]
[1738167858565,3.23478,3091.4,3091.1,0.45129229]
[1738167858878,0.805,3091.5,3091.2,0.07838335]
[1738167859082,0.805,3091.5,3091.2,3.31335335]
[1738167859249,0.792,3091.8,3091.3,0.55]
[1738167859441,0.7582,3092.1,3091.6,3.23456]
[1738167859641,3.23417,3092.0,3091.7,0.376]
[1738167859844,3.23417,3092.0,3091.7,0.45378469]
[1738167860071,0.7582,3092.1,3091.7,0.45378469]
[1738167860452,3.23416,3092.0,3091.7,0.45378469]
[1738167860653,4.02266791,3092.0,3091.7,0.45378469]
[1738167860866,3.23436,3091.8,3091.7,0.45378469]
[1738167861581,3.23436,3091.8,3091.7,0.07778469]
[1738167861967,4.02269791,3092.0,3091.4,0.376]
[1738167862149,3.23419,3092.0,3091.4,0.376]
[1738167862485,3.23419,3092.0,3091.5,0.07769864]
[1738167862786,3.99231,3092.1,3091.5,0.90689864]
[1738167862975,3.99228,3092.1,3091.5,4.14149864]
[1738167863285,3.2342,3092.0,3091.5,0.07769864]
[1738167863455,3.23444,3091.8,3091.6,0.377]
[1738167863661,4.04166,3091.7,3091.6,0.377]
[1738167863863,0.8072,3091.7,3091.6,0.377]
[1738167865097,4.04166,3091.7,3091.6,0.377]
[1738167867077,0.84758814,3091.7,3090.5,0.7628]
[1738167867277,3.2352,3091.0,3090.6,0.373]
[1738167867475,0.7655,3091.1,3090.6,3.6086]
[1738167867675,3.23466,3091.6,3090.7,0.85165429]
[1738167867901,4.0201,3091.8,3091.2,3.78491]
[1738167868108,7.25455,3091.8,3091.2,3.78491]
[1738167868270,4.0201,3091.8,3091.2,0.55]
[1738167868469,4.0201,3091.8,3091.2,3.78497]
[1738167868806,4.8509521,3091.8,3091.1,3.23501]
[1738167868991,3.23458,3091.6,3091.1,3.23501]
[1738167869188,3.23474,3091.5,3091.1,0.374]
[1738167869389,3.23495,3091.3,3091.1,0.374]
[1738167869594,0.7609,3091.2,3090.7,3.23549]
[1738167869898,0.7609,3091.2,3090.8,0.373]
[1738167870103,1.5917521,3091.8,3091.0,0.7706]
[1738167870405,3.23456,3091.7,3091.0,0.7706]
[1738167870564,0.04038814,3091.7,3091.1,0.07299891]
[1738167870771,0.04038814,3091.7,3091.0,0.373]
[1738167870999,0.04038814,3091.7,3091.1,0.07048917]
[1738167871164,3.2347,3091.5,3091.1,0.07048917]
[1738167871671,3.23485,3091.4,3091.1,0.07048917]
[1738167872167,0.32347,3091.5,3091.1,0.07048917]
[1738167872368,3.23469,3091.5,3091.1,0.07048917]
[1738167873011,3.23469,3091.5,3091.2,35.0]
[1738167873197,3.23469,3091.5,3091.3,0.07034362]
[1738167873373,3.23469,3091.5,3091.2,35.0]
[1738167873709,6.46903,3091.7,3091.3,0.07034362]
[1738167874019,3.99527,3091.8,3091.3,3.23486]
[1738167874312,3.99527,3091.8,3091.4,0.07027086]
[1738167875004,0.65499103,3091.9,3091.4,0.07027086]
[1738167875304,0.65499103,3091.9,3091.5,3.23457]
[1738167875529,0.65499103,3091.9,3091.5,3.30476809]
[1738167876808,0.65499103,3091.9,3091.6,3.23448]
[1738167877022,0.65499103,3091.9,3091.5,3.30476809]
[1738167877225,0.65499103,3091.9,3091.7,0.07005258]
[1738167877380,3.88925103,3091.9,3091.8,0.06997983]
[1738167877709,3.88925103,3091.9,3091.4,35.0]
[1738167877875,3.88925103,3091.9,3091.8,0.06997983]
[1738167878077,3.23436,3091.8,3091.3,3.23481]
[1738167878472,3.23436,3091.8,3091.4,35.0]
[1738167878695,0.65499103,3091.9,3091.4,38.23477]
[1738167879175,3.88930103,3091.9,3091.4,3.23477]
[1738167880279,3.23436,3091.8,3091.5,0.365]
[1738167880509,0.65499103,3091.9,3091.5,0.365]
[1738167880707,0.65499103,3091.9,3091.6,3.2345]
[1738167881003,3.98546,3092.2,3091.7,3.23444]
[1738167881228,3.2338,3092.4,3091.6,3.2345]
[1738167881377,3.3911749,3092.3,3091.8,3.23436]
[1738167882207,0.1573049,3092.3,3091.9,3.23425]
[1738167882416,0.1573049,3092.3,3092.0,3.78407]
[1738167882717,0.1573049,3092.3,3092.1,3.23395]
[1738167883207,0.1573049,3092.3,3092.2,3.23394]
[1738167883405,0.1573049,3092.3,3092.2,0.55]
[1738167884031,0.1573049,3092.3,3092.0,3.23408]
[1738167884358,0.1573049,3092.3,3092.1,0.55]
[1738167885135,0.1573049,3092.3,3091.5,0.8174]
[1738167885136,3.98428,3092.1,3091.5,0.8174]
[1738167885359,0.7502,3092.1,3091.5,0.364]
[1738167885657,3.23444,3091.8,3091.6,0.05987158]
[1738167885844,3.23446,3091.7,3091.6,0.05987158]
[1738167886262,3.23421,3092.0,3091.6,0.05987158]
[1738167886426,3.2341,3092.1,3091.6,0.05987158]
[1738167886759,3.2341,3092.1,3091.6,3.29440158]
[1738167886932,3.2341,3092.1,3091.7,0.36584016]
[1738167887127,3.2341,3092.1,3091.6,0.05987158]
[1738167887333,3.23421,3092.0,3091.6,0.55]
[1738167887528,3.23421,3092.0,3091.7,0.05979883]
[1738167888475,3.23436,3091.8,3091.7,0.05979883]
[1738167888763,3.98646,3091.8,3091.7,0.05979883]
[1738167888986,4.71256981,3091.8,3091.7,0.05979883]
[1738167889268,3.23446,3091.7,3091.4,0.364]
[1738167889434,3.23469,3091.5,3091.0,35.0]
[1738167889635,3.23484,3091.4,3091.1,0.364]
[1738167890070,0.7521,3091.8,3091.1,0.364]
[1738167890258,3.23428,3091.9,3091.4,0.55]
[1738167890456,3.23428,3091.9,3091.4,0.9317216]
[1738167890633,3.23437,3091.8,3091.4,0.9317216]
[1738167891232,6.4688,3091.8,3091.4,0.3817216]
[1738167891437,3.23459,3091.6,3091.4,35.0]
[1738167891661,6.46922,3091.6,3091.4,35.0]
[1738167891857,6.46887,3091.8,3091.4,35.0]
[1738167892078,3.23457,3091.6,3091.4,35.0]
[1738167893172,3.23457,3091.6,3091.2,0.37]
[1738167893374,3.23474,3091.5,3091.2,0.37]
[1738167893575,3.23474,3091.5,3091.3,35.0]
[1738167894052,3.23474,3091.5,3091.2,0.37]
[1738167894255,3.23447,3091.7,3091.2,0.37]
[1738167894566,3.23447,3091.7,3091.2,35.37]
[1738167895076,3.23474,3091.5,3091.2,35.37]
[1738167895273,3.23474,3091.5,3091.2,37.53186148]
[1738167895482,3.23447,3091.7,3091.2,37.53186148]
[1738167895697,3.23457,3091.6,3091.2,37.53186148]
[1738167896007,3.23463,3091.6,3091.2,37.53186148]
[1738167896601,0.66030623,3092.0,3091.2,37.16186148]
[1738167896895,0.66030623,3092.0,3090.6,0.0075]
[1738167896896,3.23536,3090.9,3090.3,5.79785]
[1738167897039,0.7624,3091.3,3090.8,0.365]
[1738167897244,3.23493,3091.3,3090.9,0.8256]
[1738167897439,3.23493,3091.3,3090.9,35.8256]
[1738167897874,3.23511,3091.1,3090.8,0.365]
[1738167898457,6.47029,3091.1,3090.8,35.365]
[1738167898653,3.2352,3091.0,3090.8,35.365]
[1738167899375,3.2352,3091.0,3090.8,35.0]
[1738167899674,3.2352,3091.0,3090.8,35.365]
[1738167899974,3.2353,3090.9,3090.8,35.0]
[1738167900475,3.23551,3090.7,3090.6,0.364]
[1738167900945,3.23526,3091.0,3090.6,0.364]
[1738167901141,3.23538,3090.9,3090.6,0.364]
[1738167901771,0.7624,3091.3,3090.6,0.364]
[1738167901978,3.2354,3090.9,3090.6,0.364]
[1738167902302,3.2354,3090.9,3089.9,2.562]
[1738167902303,3.23561,3090.6,3090.5,0.364]
[1738167902646,4.06167,3090.7,3090.5,0.364]
[1738167902846,4.06167,3090.7,3090.0,0.7628]
[1738167902847,3.23589,3090.4,3090.0,0.7628]
[1738167903068,3.23589,3090.4,3090.1,35.363]
[1738167903270,0.8261,3090.7,3089.7,0.8043]
[1738167903584,3.23623,3090.1,3089.9,0.363]
[1738167903757,3.23607,3090.2,3089.9,0.363]
[1738167903957,3.23588,3090.4,3089.9,0.363]
[1738167904167,3.23588,3090.4,3090.0,0.7995]
[1738167904484,3.23588,3090.4,3090.1,0.363]
[1738167904684,1.46553816,3090.7,3090.1,0.363]
[1738167904851,3.23568,3090.6,3090.1,0.363]
[1738167905365,3.23578,3090.5,3090.1,0.363]
[1738167906790,3.23582,3090.4,3089.7,0.7533]
[1738167906991,3.23646,3089.8,3089.4,1.1173]
[1738167907190,3.23646,3089.8,3089.4,35.0]
[1738167907191,3.23673,3089.6,3089.4,35.0]
[1738167907391,3.23687,3089.4,3089.3,0.37]
[1738167907778,3.23676,3089.6,3089.3,0.37]
[1738167907974,3.23687,3089.4,3089.3,0.37]
[1738167909819,3.23687,3089.4,3088.9,35.0]
[1738167910025,3.23687,3089.4,3088.9,35.373]
[1738167910202,3.23707,3089.3,3088.9,35.373]
[1738167910395,3.23687,3089.4,3088.9,35.373]
[1738167910597,3.23717,3089.2,3088.9,35.0]
[1738167911105,3.23666,3089.6,3089.0,1.353]
[1738167911314,3.23662,3089.7,3089.0,4.59022]
[1738167911681,3.23684,3089.5,3089.3,35.0]
[1738167912606,3.23662,3089.7,3089.3,35.0]
[1738167912906,4.67202533,3090.1,3089.3,35.0]
[1738167912907,3.2368,3089.5,3089.3,35.0]
[1738167913109,3.23687,3089.4,3089.3,35.0]
[1738167913899,3.23687,3089.4,3088.7,0.7971]
[1738167914104,3.23724,3089.1,3088.4,4.07047]
[1738167914305,3.23724,3089.1,3088.8,0.369]
[1738167914505,3.23724,3089.1,3088.8,35.369]
[1738167914702,0.827,3089.8,3089.1,3.23709]
[1738167914907,3.23614,3090.1,3089.3,3.23691]
[1738167915133,3.23642,3089.9,3089.3,3.23691]
[1738167915734,3.23642,3089.9,3089.2,0.55]
[1738167915940,3.23642,3089.9,3089.3,3.23695]
[1738167916136,3.23642,3089.9,3089.4,0.05975382]
[1738167916342,3.23653,3089.8,3089.4,0.05975382]
[1738167916541,0.8248,3090.9,3089.6,2.0]
[1738167916837,4.06014,3090.9,3090.1,0.55]
[1738167917044,3.23552,3090.7,3090.1,0.55]
[1738167917242,3.23552,3090.7,3090.2,35.05676483]
[1738167917545,4.06014,3090.9,3090.2,38.29272483]
[1738167917714,4.06014,3090.9,3090.3,3.9907]
[1738167917919,4.06014,3090.9,3090.4,0.369]
[1738167918120,3.23543,3090.8,3090.4,0.4256192]
[1738167918419,3.23541,3090.8,3090.4,0.4256192]
[1738167919446,0.7719,3092.0,3090.9,0.7902]
[1738167919623,3.23456,3091.7,3091.0,3.23512]